[Event "Indian Rapid Championship 2023-24"]
[Site "Nashik"]
[Date "2024.03.04"]
[Round "1.1"]
[White "Bartakke Aditya"]
[Black "Mitrabha, Guha"]
[Result "1/2-1/2"]
[ECO "C01"]
[WhiteElo "1843"]
[BlackElo "2526"]
[Annotator "TA"]
[PlyCount "79"]
[EventDate "2024.03.02"]
[EventType "swiss"]
[EventCountry "IND"]
[SourceTitle "playchess.com"]
[Source "ChessBase"]
[SourceQuality "1"]
[TimeControl "900+10"]

{[%evp 9,79,17,18,23,26,25,23,9,22,21,18,10,22,0,0,0,-1,-6,19,0,0,0,18,0,90,90,142,34,95,0,81,79,77,74,66,67,99,62,61,59,57,70,54,70,65,19,20,6,0,2,13,0,0,0,0,0,0,0,15,17,204,0,0,0,0,0,0,0,0,0,0,0]} 1. e4 {[%emt 0:00:02]} e6 {[%emt 0:00:01]} 2. d4 {[%emt 0:00:01]} d5 {[%emt 0:00:02]} 3. Bd3 {[%emt 0:00:02]} c5 {[%emt 0:00:06]} 4. exd5 {[%emt 0:00:03]} exd5 {[%emt 0:00:01]} 5. Nf3 {[%emt 0:00:03]} c4 {[%emt 0:00:09]} 6. Be2 {[%emt 0:00:02]} Nf6 {[%emt 0:00:02]} 7. O-O {[%emt 0:00:03]} Bd6 {[%emt 0:00:02]} 8. b3 {[%emt 0:00:17] White has an edge.} cxb3 $1 {[%emt 0:00:02]} 9. axb3 {[%emt 0:00:02]} O-O {[%emt 0:00:02]} 10. c4 {[%emt 0:00:09]} Nc6 {[%emt 0:00:09]} 11. Bg5 {[%emt 0:00:12]} h6 {[%emt 0:00:09]} 12. Bh4 {[%emt 0:02:20]} g5 {[%emt 0:00:11][%cal Bg7g5,Bg5g4][%mdl 32]} 13. Bg3 {[%emt 0:00:02]} Bxg3 {[%emt 0:00:02]} 14. hxg3 {[%emt 0:00:02]} dxc4 {[%emt 0:00:07]} 15. Bxc4 {[%emt 0:00:53]} (15. bxc4 g4 16. Nfd2 Qxd4 $17 (16... Nxd4 17. Bd3 $17)) 15... g4 {[%emt 0:00:29]} 16. Ne5 {[%emt 0:02:17]} (16. d5 $5) 16... Nxd4 {[%emt 0:00:26]} (16... Qxd4 $11 17. Qxd4 Nxd4) 17. Qd2 $16 {[%emt 0:00:33]} Kg7 {[%emt 0:02:26] [#]} (17... Nf5 $142) 18. Rd1 {[%emt 0:00:06]} ({White should play} 18. Nxf7 $1 $16 Nf3+ (18... Rxf7 $2 19. Bxf7 Bf5 20. Ra4 $18) 19. gxf3 Qxd2 20. Nxd2) 18... Ne6 {[%emt 0:00:28]} (18... Nc6 $14 19. Qc1 Qc7 20. Nxc6 bxc6) 19. Qe2 {[%emt 0:01:23] White is much more active.} (19. Nd3 $16) 19... Qe7 {[%emt 0:00:21]} (19... Nd4 $11 20. Qd2 (20. Qb2 Nf3+ 21. gxf3 Qxd1+ $17) 20... Nc6) 20. Nxg4 {[%emt 0:00:22]} Nxg4 {[%emt 0:00:44]} 21. Qxg4+ {[%emt 0:00:03]} Qg5 {[%emt 0:00:01]} 22. Qe4 {[%emt 0:02:41]} Qf6 {[%emt 0:00:09] Repels Nc3} 23. Ra5 {[%emt 0:01:16]} Ng5 {[%emt 0:00:22]} 24. Qe3 {[%emt 0:00:30][%cal Ob1c3] aiming for Nc3!} Bg4 {[%emt 0:00:29]} 25. f3 {[%emt 0:00:52]} Rfe8 {[%emt 0:00:09]} 26. Qc3 {[%emt 0:00:38]} Be6 {[%emt 0:00:16]} 27. Bxe6 {[%emt 0:01:09]} (27. Qxf6+ $14 Kxf6 28. Nc3) 27... Rxe6 $11 {[%emt 0:00:03]} 28. Rf5 {[%emt 0:00:15]} Qxc3 {[%emt 0:00:09]} 29. Nxc3 {[%emt 0:00:01]} Re3 {[%emt 0:00:12]} 30. Nd5 {[%emt 0:00:40]} Rxb3 {[%emt 0:00:50]} 31. Nc7 {[%emt 0:00:21]} Rc8 {[%emt 0:00:00]} 32. Rd7 {[%emt 0:00:07]} Rc3 {[%emt 0:00:05]} 33. Nd5 {[%emt 0:00:05]} Rc1+ {[%emt 0:02:08]} 34. Kh2 {[%emt 0:00:02][%cal Of3f4][%mdl 1024] White has compensation.} R8c2 $2 {[%emt 0:00:45] [#]} (34... Rb1 $11) 35. f4 $2 {[%emt 0:01:26]} ({Only move:} 35. g4 $1 $18 {[%cal Of3f4] f4! is the strong threat.} Rd2 36. f4 Rxd5 37. Rdxd5 (37. Rfxd5 Ne4 $18)) 35... Nf3+ {[%emt 0:06:26] The position is equal.} 36. Kh3 {[%emt 0:00:02]} Rh1+ {[%emt 0:00:01]} 37. Kg4 {[%emt 0:00:02]} Nh2+ {[%emt 0:00:02]} ({Worse is} 37... Rxg2 38. Rfxf7+ (38. Kxf3 Rxg3+ 39. Kxg3 Rg1+ 40. Kf2 Rg4 41. Rdxf7+ Kg8 42. Ne7+ Kh8 43. R5f6 Rxf4+ 44. Rxf4 h5 45. Rc4 b6 46. Rc8#) 38... Kg8 39. Nf6+ Kh8 40. Rh7#) 38. Kh3 {[%emt 0:00:03]} Nf1+ {[%emt 0:00:31]} 39. Kg4 {[%emt 0:00:09]} Nh2+ {[%emt 0:01:31]} ({Weaker is} 39... Rxg2 40. Rfxf7+ (40. Rdxf7+ Kg8 41. Ne7+ Kh8 42. Rf8+ Kh7 43. R5f7#) 40... Kg8 41. Nf6+ Kh8 42. Rh7#) 40. Kh3 {[%emt 0:00:02] Weighted Error Value: White=0.24 (precise) /Black=0.24 (precise) .  Loses game:     	---       	Black=1      Missed win:     	White=1     	---        Mistake:       	White=3     	Black=4      Inaccurate:     	White=1     	Black=1      OK:         	White=11    	Black=16     Best:        	White=1     	Black=3      Strong:       	---       	Black=1} 1/2-1/2

[Event "Indian Rapid Championship 2023-24"]
[Site "Nashik"]
[Date "2024.03.04"]
[Round "1.2"]
[White "Ghosh, Diptayan"]
[Black "Jess Ruchandani"]
[Result "1-0"]
[ECO "D45"]
[WhiteElo "2559"]
[BlackElo "1733"]
[Annotator "TA"]
[PlyCount "87"]
[EventDate "2024.03.02"]
[EventType "swiss"]
[EventCountry "IND"]
[SourceTitle "playchess.com"]
[Source "ChessBase"]
[SourceQuality "1"]
[TimeControl "900+10"]

{[%evp 16,86,20,5,99,89,116,121,143,140,140,112,99,108,125,108,150,131,147,118,116,0,126,139,134,110,137,130,120,118,117,115,116,112,117,113,141,119,165,131,124,131,151,160,149,143,173,163,168,156,228,212,305,302,409,371,745,742,1159,549,1030,1002,5606,1056,1085,1073,29989,1279,29994,29995,29998,29999,29999]} 1. Nf3 {[%emt 0:00:04]} d5 {[%emt 0:00:02]} 2. e3 {[%emt 0:00:02]} Nf6 {[%emt 0:00:05]} 3. c4 {[%emt 0:00:02]} c6 {[%emt 0:00:02]} 4. Nc3 {[%emt 0:00:02]} e6 {[%emt 0:00:02]} 5. d4 {[%emt 0:00:09]} Nbd7 {[%emt 0:00:03]} 6. Be2 {[%emt 0:00:20]} Bd6 {[%emt 0:00:03]} 7. O-O {[%emt 0:00:03]} O-O {[%emt 0:00:04]} 8. b3 {[%emt 0:00:02]} Re8 {[%emt 0:00:57]} 9. Bb2 {[%emt 0:00:05]} e5 {[%emt 0:00:30]} (9... b6 $11) 10. dxe5 {[%emt 0:00:07]} Nxe5 {[%emt 0:00:10]} 11. cxd5 {[%emt 0:00:03]} Qe7 {[%emt 0:04:49] White is better.} 12. dxc6 {[%emt 0:01:03]} Nxc6 {[%emt 0:01:26]} 13. Nd5 {[%emt 0:02:50]} Nxd5 {[%emt 0:01:32]} 14. Qxd5 {[%emt 0:00:02]} Be6 {[%emt 0:00:13]} 15. Qh5 {[%emt 0:00:18]} f6 {[%emt 0:02:15] Repels Ng5} 16. Rfd1 {[%emt 0:00:33]} Rad8 {[%emt 0:00:49]} 17. Qh4 {[%emt 0:00:44] White is more active.} Bf5 {[%emt 0:02:40]} 18. Qh5 {[%emt 0:05:33]} (18. g3 $16) 18... Bg6 {[%emt 0:00:57]} (18... Be6 $1 $11) 19. Qg4 $16 {[%emt 0:00:34]} Kh8 {[%emt 0:00:32]} 20. Nh4 {[%emt 0:00:44][%cal Bf3h4,Bh4f5,Bf5d4][%mdl 32]} Be4 {[%emt 0:00:50]} 21. Bf3 {[%emt 0:01:22]} Bxf3 {[%emt 0:00:21]} 22. Qxf3 {[%emt 0:00:25]} Be5 {[%emt 0:00:09]} 23. Bxe5 {[%emt 0:00:29]} Nxe5 {[%emt 0:00:02]} 24. Qe2 {[%emt 0:00:01]} Qc7 {[%emt 0:00:20]} 25. Nf5 {[%emt 0:00:13]} Qa5 {[%emt 0:00:13]} 26. h4 {[%emt 0:00:11][%cal Bh2h4,Bh4h5][%mdl 32]} Nf7 {[%emt 0:00:07] Prevents Nd6} (26... g6 $16 {was called for.}) 27. Qg4 {[%emt 0:00:11][%csl Gf5][%cal Rg4g7] [#]} g6 {[%emt 0:00:08]} 28. Nd4 {[%emt 0:00:02]} Ne5 {[%emt 0:00:12]} 29. Qf4 $40 {[%emt 0:00:02][%mdl 128] White attacks with force.} Qb6 {[%emt 0:00:11]} 30. Rac1 {[%emt 0:00:06]} Kg7 {[%emt 0:00:10] [#]} 31. h5 $1 {[%emt 0:00:09][%mdl 512]} Re7 {[%emt 0:00:06]} 32. Rc3 {[%emt 0:00:24]} Kf7 {[%emt 0:00:17]} (32... Nc6 $16 33. Rcd3 Nxd4 34. Rxd4 Rxd4 35. Rxd4 g5) 33. Rdc1 $18 {[%emt 0:00:03]} Red7 {[%emt 0:00:10]} (33... Qd6 $142 34. a4 a6) 34. Qh4 {[%emt 0:01:05]} g5 {[%emt 0:00:08]} 35. Qe4 {[%emt 0:00:04]} Kg7 {[%emt 0:00:08]} (35... Kg8 36. Rc8 h6) 36. Qf5 {[%emt 0:00:04]} Re7 {[%emt 0:00:13] Prevents Ne6+.} 37. Rc8 {[%emt 0:00:09]} (37. h6+ $142 Kg8 38. Rc8) 37... Rxc8 {[%emt 0:00:10]} 38. Rxc8 {[%emt 0:00:02] f4 is the strong threat.} Nf7 {[%emt 0:00:09]} 39. Qd5 {[%emt 0:00:17] Black is weak on the light squares} (39. Qd7 $142 Qxd4 40. Qxd4) 39... Re5 {[%emt 0:00:12]} 40. Qd7 {[%emt 0:00:10][%cal Oh5h6] White threatens h6+! and mate.} Qa5 {[%emt 0:00:11]} 41. Rc7 {[%emt 0:00:30]} ({Weaker is} 41. Qxb7 Qe1+ 42. Kh2 Qxf2 $16) (41. h6+ $142 Kxh6 42. Qxf7 Rxe3 43. Qxf6+ Kh5 44. Qf7+ (44. fxe3 Qe1+ 45. Qf1 Qxe3+ 46. Qf2 Qxf2+ 47. Kxf2 Kg6 $18) 44... Kh6 45. Nf5+ (45. fxe3 Qe1+ 46. Qf1 Qxe3+ 47. Qf2 Qxf2+ 48. Kxf2 Kg6 $18) 45... Qxf5 46. Qxf5) 41... Qe1+ {[%emt 0:00:10]} 42. Kh2 {[%emt 0:00:02] White mates.} Qxf2 {[%emt 0:00:11]} 43. Qxf7+ {[%emt 0:00:02]} Kh6 {[%emt 0:00:02]} 44. Qxh7# {[%emt 0:00:02] Weighted Error Value: White=0.33/Black=0.65.  Mistake:       	White=1     	Black=5      Inaccurate:     	---       	Black=5      OK:         	White=12    	Black=4} 1-0

[Event "Indian Rapid Championship 2023-24"]
[Site "Nashik"]
[Date "2024.03.04"]
[Round "1.3"]
[White "Patil Akshaj"]
[Black "Sengupta, Deep"]
[Result "1-0"]
[ECO "B08"]
[WhiteElo "1756"]
[BlackElo "2500"]
[Annotator "RC"]
[PlyCount "113"]
[EventDate "2024.03.02"]
[EventType "swiss"]
[EventCountry "IND"]
[SourceTitle "playchess.com"]
[Source "ChessBase"]
[SourceQuality "1"]
[TimeControl "900+10"]

1. e4 {[%emt 0:00:02]} d6 {[%emt 0:00:01]} 2. d4 {[%emt 0:00:01]} Nf6 {[%emt 0:00:01]} 3. Nc3 {[%emt 0:00:01]} g6 {[%emt 0:00:01]} 4. Be3 {[%emt 0:00:07]} Bg7 {[%emt 0:00:03]} 5. Qd2 {[%emt 0:00:11]} c6 {[%emt 0:00:01]} 6. h3 {[%emt 0:00:13]} b5 {[%emt 0:00:01]} 7. Bd3 {[%emt 0:00:29]} O-O {[%emt 0:00:17]} 8. Nf3 {[%emt 0:00:02]} Nbd7 {[%emt 0:01:06]} 9. O-O {[%emt 0:00:17]} Nb6 {[%emt 0:03:52]} 10. Rfe1 {[%emt 0:00:37]} Nfd7 {[%emt 0:00:11]} 11. Bh6 {[%emt 0:01:06]} e5 {[%emt 0:00:21]} 12. Rad1 {[%emt 0:01:34]} a6 {[%emt 0:02:10]} 13. Bf1 {[%emt 0:00:35]} Qe7 {[%emt 0:00:36]} 14. a3 {[%emt 0:00:25]} Re8 {[%emt 0:01:00]} 15. b3 {[%emt 0:02:06]} Nf8 {[%emt 0:00:18]} 16. Be3 {[%emt 0:00:40]} Rb8 {[%emt 0:01:50]} 17. g3 {[%emt 0:00:03]} Ne6 {[%emt 0:00:31]} 18. Bg2 {[%emt 0:00:03]} Nc7 {[%emt 0:02:04]} 19. Kh2 {[%emt 0:01:47]} Be6 {[%emt 0:00:08]} 20. Na2 {[%emt 0:02:38]} c5 {[%emt 0:01:46]} 21. dxc5 {[%emt 0:01:09]} dxc5 {[%emt 0:00:01]} 22. Qd6 {[%emt 0:00:02]} Qxd6 {[%emt 0:00:47]} 23. Rxd6 {[%emt 0:00:01]} Bf8 {[%emt 0:00:20]} 24. Rc6 {[%emt 0:01:03]} Rb7 {[%emt 0:00:54]} 25. Bxc5 {[%emt 0:00:13]} Bxc5 {[%emt 0:00:14]} 26. Rxc5 {[%emt 0:00:02]} f6 {[%emt 0:00:13]} 27. Rd1 {[%emt 0:00:09]} Kf7 {[%emt 0:00:21]} 28. Nb4 {[%emt 0:01:10]} Rc8 {[%emt 0:00:25]} 29. Rc3 {[%emt 0:00:48]} Ke8 {[%emt 0:00:11]} 30. Ne1 {[%emt 0:00:24]} Bd7 {[%emt 0:00:01]} 31. f4 {[%emt 0:00:30]} a5 {[%emt 0:00:01]} 32. Nbd3 {[%emt 0:00:07]} Na6 {[%emt 0:00:04]} 33. Rxc8+ {[%emt 0:00:03]} Bxc8 {[%emt 0:00:08]} 34. fxe5 {[%emt 0:00:02]} fxe5 {[%emt 0:00:26]} 35. Nxe5 {[%emt 0:00:00]} a4 {[%emt 0:00:07]} 36. Nc6 {[%emt 0:00:27]} Rd7 {[%emt 0:00:13]} 37. Rxd7 {[%emt 0:00:07]} Bxd7 {[%emt 0:00:04]} 38. Nd4 {[%emt 0:00:27]} b4 {[%emt 0:00:00]} 39. axb4 {[%emt 0:00:01]} a3 {[%emt 0:00:02]} 40. c3 {[%emt 0:00:01]} a2 {[%emt 0:00:10]} 41. Nec2 {[%emt 0:00:02]} Nc7 {[%emt 0:00:19]} 42. Kg1 {[%emt 0:00:13]} Nb5 {[%emt 0:00:06]} 43. Nxb5 {[%emt 0:00:04]} Bxb5 {[%emt 0:00:01]} 44. c4 {[%emt 0:00:01]} Bd7 {[%emt 0:00:40]} 45. Kf2 {[%emt 0:00:02]} Nc8 {[%emt 0:00:09]} 46. Ke3 {[%emt 0:00:02]} Nd6 {[%emt 0:00:01]} 47. Kd4 {[%emt 0:00:03]} Ke7 {[%emt 0:00:16]} 48. b5 {[%emt 0:01:35]} Nc8 {[%emt 0:00:08]} 49. Kc3 {[%emt 0:00:06]} Kd6 {[%emt 0:00:17]} 50. Kb2 {[%emt 0:00:01]} Ke5 {[%emt 0:00:08]} 51. Kxa2 {[%emt 0:00:02]} Nd6 {[%emt 0:00:04]} 52. Kb2 {[%emt 0:00:05]} Nf7 {[%emt 0:00:09]} 53. Kc3 {[%emt 0:00:08]} Ng5 {[%emt 0:00:01]} 54. h4 {[%emt 0:00:02]} Nxe4+ {[%emt 0:00:08]} 55. Bxe4 {[%emt 0:00:01]} Kxe4 {[%emt 0:00:01]} 56. b6 {[%emt 0:00:06]} Kf3 {[%emt 0:00:38]} 57. b7 {[%emt 0:00:02]} 1-0

[Event "Indian Rapid Championship 2023-24"]
[Site "Nashik"]
[Date "2024.03.04"]
[Round "1.3"]
[White "Patil Akshaj"]
[Black "Sengupta, Deep"]
[Result "0-1"]
[ECO "C11"]
[WhiteElo "1756"]
[BlackElo "2500"]
[Annotator "ChessBase"]
[PlyCount "112"]
[EventDate "2024.03.02"]
[EventType "swiss"]
[EventCountry "IND"]
[SourceTitle "playchess.com"]
[Source "ChessBase"]
[SourceQuality "1"]
[TimeControl "900+10"]

1. e4 {[%emt 0:00:02]} e6 {[%emt 0:00:01]} 2. d4 {[%emt 0:00:03]} d5 {[%emt 0:00:01]} 3. Nc3 {[%emt 0:00:02]} Nf6 {[%emt 0:00:02]} 4. e5 {[%emt 0:00:03]} Nfd7 {[%emt 0:00:01]} 5. f4 {[%emt 0:00:02]} c5 {[%emt 0:00:00]} 6. Nf3 {[%emt 0:00:02]} Nc6 {[%emt 0:00:02]} 7. Be3 {[%emt 0:00:04]} Be7 {[%emt 0:00:02]} 8. Qd2 {[%emt 0:00:09]} O-O {[%emt 0:00:02]} 9. dxc5 {[%emt 0:00:10]} Nxc5 {[%emt 0:00:02]} 10. O-O-O {[%emt 0:00:06]} b6 {[%emt 0:00:01]} 11. g4 {[%emt 0:00:41]} Bb7 {[%emt 0:00:12]} 12. Bg2 {[%emt 0:00:08]} Rc8 {[%emt 0:01:19]} 13. Kb1 {[%emt 0:01:15]} Na5 {[%emt 0:01:31]} 14. Qf2 {[%emt 0:01:06]} Nc4 {[%emt 0:00:26]} 15. Bd4 {[%emt 0:00:47]} Qc7 {[%emt 0:00:21]} 16. Nd2 {[%emt 0:01:28]} Nxd2+ {[%emt 0:05:13]} 17. Rxd2 {[%emt 0:01:37]} a6 {[%emt 0:00:31]} 18. Qe3 {[%emt 0:01:20]} b5 {[%emt 0:02:49]} 19. f5 {[%emt 0:00:53]} Kh8 {[%emt 0:00:30]} 20. Ne2 {[%emt 0:01:49]} Ne4 {[%emt 0:02:14]} 21. Bxe4 {[%emt 0:00:24]} dxe4 {[%emt 0:00:02]} 22. h4 {[%emt 0:00:23]} Bc5 {[%emt 0:01:06]} 23. f6 {[%emt 0:03:33]} Rg8 {[%emt 0:01:27]} 24. g5 {[%emt 0:02:18]} Bxd4 {[%emt 0:00:29]} 25. Nxd4 {[%emt 0:00:10]} Qxe5 {[%emt 0:00:03]} 26. Rf1 {[%emt 0:00:13]} g6 {[%emt 0:00:44]} 27. Nb3 {[%emt 0:00:15]} Bd5 {[%emt 0:00:06]} 28. Nd4 {[%emt 0:00:17]} Rgd8 {[%emt 0:00:11]} 29. h5 {[%emt 0:00:21]} Rd7 {[%emt 0:00:20]} 30. hxg6 {[%emt 0:00:06]} fxg6 {[%emt 0:00:01]} 31. Rh1 {[%emt 0:00:11]} Kg8 {[%emt 0:00:04]} 32. Nb3 {[%emt 0:00:15]} Rdc7 {[%emt 0:00:13]} 33. c3 {[%emt 0:00:02]} b4 {[%emt 0:00:02]} 34. cxb4 {[%emt 0:00:08]} Bxb3 {[%emt 0:00:05]} 35. axb3 {[%emt 0:00:01]} a5 {[%emt 0:00:35]} 36. Rhd1 {[%emt 0:00:03]} Rf8 {[%emt 0:00:03]} 37. Rd7 {[%emt 0:00:21]} axb4 {[%emt 0:00:14]} 38. Rxc7 {[%emt 0:00:07]} Qxc7 {[%emt 0:00:01]} 39. Qxe4 {[%emt 0:00:01]} Qb6 {[%emt 0:00:04]} 40. Re1 {[%emt 0:00:22]} Re8 {[%emt 0:00:18]} 41. Qf4 {[%emt 0:00:22]} Qb7 {[%emt 0:00:15]} 42. Qc4 {[%emt 0:00:10]} Kf7 {[%emt 0:00:09]} 43. Qh4 {[%emt 0:00:01]} Kg8 {[%emt 0:00:08]} 44. Rf1 {[%emt 0:00:04]} Rf8 {[%emt 0:00:04]} 45. Qc4 {[%emt 0:00:02]} Qd7 {[%emt 0:00:02]} 46. Re1 {[%emt 0:00:13]} Re8 {[%emt 0:00:12]} 47. Qc2 {[%emt 0:00:31]} Qd5 {[%emt 0:00:08]} 48. Rf1 {[%emt 0:00:15]} Rd8 {[%emt 0:00:18]} 49. f7+ {[%emt 0:00:11]} Kf8 {[%emt 0:00:03]} 50. Rc1 {[%emt 0:00:07]} Qxg5 {[%emt 0:00:30]} 51. Qe4 {[%emt 0:00:10]} Qf5 {[%emt 0:00:02]} 52. Qxf5 {[%emt 0:00:12]} exf5 {[%emt 0:00:01]} 53. Rc7 {[%emt 0:00:02]} f4 {[%emt 0:00:04]} 54. Rc4 {[%emt 0:00:01]} g5 {[%emt 0:00:01]} 55. Rxb4 {[%emt 0:00:01]} f3 {[%emt 0:00:23]} 56. Rb5 {[%emt 0:00:01]} f2 {[%emt 0:00:02]} 0-1

[Event "Indian Rapid Championship 2023-24"]
[Site "Nashik"]
[Date "2024.03.04"]
[Round "1.4"]
[White "Karthik Venkataraman"]
[Black "Gaikwad, Vishal"]
[Result "1-0"]
[ECO "B08"]
[WhiteElo "2609"]
[BlackElo "1628"]
[Annotator "TA"]
[PlyCount "113"]
[EventDate "2024.03.02"]
[EventType "swiss"]
[EventCountry "IND"]
[SourceTitle "playchess.com"]
[Source "ChessBase"]
[SourceQuality "1"]
[TimeControl "900+10"]

{[%evp 16,113,14,22,73,61,73,69,76,17,53,38,58,17,31,26,54,42,61,36,122,18,36,0,49,20,29,29,16,24,17,31,82,94,80,86,88,91,95,94,91,91,108,97,170,153,175,192,183,187,256,244,260,270,266,267,271,212,216,209,209,209,205,202,406,411,419,420,409,407,487,477,489,460,480,462,495,483,487,466,501,529,737,735,741,743,852,843,857,856,898,835,1230,1140,5735,5689,3697,2716,29986,29987]} 1. e4 {[%emt 0:00:02]} d6 {[%emt 0:00:01]} 2. d4 {[%emt 0:00:01]} Nf6 {[%emt 0:00:01]} 3. Nc3 {[%emt 0:00:01]} g6 {[%emt 0:00:01]} 4. Be3 {[%emt 0:00:07]} Bg7 {[%emt 0:00:03]} 5. Qd2 {[%emt 0:00:11]} c6 {[%emt 0:00:01]} 6. h3 {[%emt 0:00:13]} b5 {[%emt 0:00:01]} 7. Bd3 {[%emt 0:00:29]} O-O {[%emt 0:00:17]} 8. Nf3 {[%emt 0:00:02]} Nbd7 {[%emt 0:01:06]} 9. O-O {[%emt 0:00:17]} Nb6 {[%emt 0:03:52]} (9... Qc7 $11) 10. Rfe1 {[%emt 0:00:37]} Nfd7 {[%emt 0:00:11]} 11. Bh6 {[%emt 0:01:06]} e5 {[%emt 0:00:21] White is slightly better.} 12. Rad1 {[%emt 0:01:34]} (12. Bxg7 $16 Kxg7 13. a4) 12... a6 {[%emt 0:02:10]} 13. Bf1 {[%emt 0:00:35]} Qe7 {[%emt 0:00:36]} 14. a3 {[%emt 0:00:25]} Re8 {[%emt 0:01:00]} 15. b3 {[%emt 0:02:06]} Nf8 {[%emt 0:00:18]} 16. Be3 {[%emt 0:00:40] dxe5 is the strong threat.} Rb8 {[%emt 0:01:50]} 17. g3 {[%emt 0:00:03]} Ne6 {[%emt 0:00:31]} (17... Nfd7 $14) 18. Bg2 {[%emt 0:00:03]} ({White has to play} 18. d5 $16 Nd4 19. Nxd4 exd4 20. Bxd4 Bxd4 21. Qxd4) 18... Nc7 {[%emt 0:02:04]} 19. Kh2 {[%emt 0:01:47]} (19. dxe5 $5 dxe5 20. a4 $11) 19... Be6 {[%emt 0:00:08]} (19... Bf8 $11) 20. Na2 {[%emt 0:02:38] And now dxe5 would win.} c5 {[%emt 0:01:46]} 21. dxc5 {[%emt 0:01:09]} dxc5 {[%emt 0:00:01]} 22. Qd6 {[%emt 0:00:02]} Qxd6 {[%emt 0:00:47]} 23. Rxd6 {[%emt 0:00:01][%cal Bd1d6,Bd6c6,Bc6c5,Bc5c3][%mdl 32]} Bf8 {[%emt 0:00:20]} ({Black should play} 23... Nca8 $14) 24. Rc6 $16 {[%emt 0:01:03]} Rb7 {[%emt 0:00:54]} 25. Bxc5 {[%emt 0:00:13]} Bxc5 {[%emt 0:00:14]} 26. Rxc5 {[%emt 0:00:02]} f6 {[%emt 0:00:13]} 27. Rd1 {[%emt 0:00:09]} Kf7 {[%emt 0:00:21]} 28. Nb4 {[%emt 0:01:10][%cal Ba2b4,Bb4d3,Bd3e5,Be5c6,Bc6d4][%mdl 32]} Rc8 {[%emt 0:00:25]} 29. Rc3 {[%emt 0:00:48] White is much more active.} Ke8 {[%emt 0:00:11]} (29... Bd7 $16) 30. Ne1 {[%emt 0:00:24]} Bd7 {[%emt 0:00:01]} 31. f4 $1 {[%emt 0:00:30]} a5 {[%emt 0:00:01]} 32. Nbd3 {[%emt 0:00:07]} Na6 {[%emt 0:00:04]} (32... exf4 $142 33. Nxf4 (33. gxf4 Rbb8 $16) 33... Rbb8) 33. Rxc8+ $18 {[%emt 0:00:03]} Bxc8 {[%emt 0:00:08]} 34. fxe5 {[%emt 0:00:02]} fxe5 {[%emt 0:00:26]} 35. Nxe5 {[%emt 0:00:00]} a4 {[%emt 0:00:07]} 36. Nc6 {[%emt 0:00:27]} Rd7 {[%emt 0:00:13]} 37. Rxd7 {[%emt 0:00:07]} ({Don't play} 37. Nd3 $6 axb3 38. cxb3 Nc5 $16) 37... Bxd7 {[%emt 0:00:04] [#]} 38. Nd4 {[%emt 0:00:27]} b4 {[%emt 0:00:00] [#]} 39. axb4 {[%emt 0:00:01]} a3 {[%emt 0:00:02]} (39... Nxb4 {was necessary.} 40. bxa4 Bxa4) 40. c3 {[%emt 0:00:01][%cal Bc2c3,Bc3c4][%mdl 32]} a2 {[%emt 0:00:10]} 41. Nec2 {[%emt 0:00:02]} Nc7 {[%emt 0:00:19]} 42. Kg1 {[%emt 0:00:13]} Nb5 {[%emt 0:00:06]} 43. Nxb5 {[%emt 0:00:04]} Bxb5 {[%emt 0:00:01][%mdl 4096] Endgame. KBN-KBN} 44. c4 {[%emt 0:00:01]} Bd7 {[%emt 0:00:40]} 45. Kf2 {[%emt 0:00:02]} Nc8 {[%emt 0:00:09]} 46. Ke3 {[%emt 0:00:02]} Nd6 {[%emt 0:00:01]} 47. Kd4 {[%emt 0:00:03]} Ke7 {[%emt 0:00:16]} 48. b5 {[%emt 0:01:35]} Nc8 {[%emt 0:00:08]} 49. Kc3 {[%emt 0:00:06]} Kd6 {[%emt 0:00:17]} 50. Kb2 {[%emt 0:00:01]} Ke5 {[%emt 0:00:08]} 51. Kxa2 {[%emt 0:00:02]} Nd6 {[%emt 0:00:04]} 52. Kb2 {[%emt 0:00:05]} Nf7 {[%emt 0:00:09]} 53. Kc3 {[%emt 0:00:08]} Ng5 {[%emt 0:00:01]} 54. h4 {[%emt 0:00:02]} Nxe4+ {[%emt 0:00:08]} 55. Bxe4 {[%emt 0:00:01]} Kxe4 {[%emt 0:00:01]} 56. b6 {[%emt 0:00:06][%cal Bb5b6,Bb6b7][%mdl 32] White threatens b7 and mate.} Kf3 {[%emt 0:00:38]} 57. b7 {[%emt 0:00:02] Weighted Error Value: White=0.14 (very precise) /Black=0.30.  Mistake:       	White=2     	Black=6      Inaccurate:     	White=3     	Black=3      OK:         	White=18    	Black=10     Best:        	White=4     	Black=1} 1-0